bitfinex-derivatives/quotes_SOLF0:USTF0_20241029
["timestamp","ask_amount","ask_price","bid_price","bid_amount"]
[1730181850862,6.7451,180.96,180.92,2.7657]
[1730181857264,7.07072073,181.01,180.94,5.9597619]
[1730181857572,5.9597619,181.11,181.0,5.9597619]
[1730181857764,3.98,181.1,181.04,5.9597619]
[1730181857968,3.98,181.1,181.05,2.7636]
[1730181858577,5.9597619,181.09,181.05,2.7636]
[1730181860078,3.98,181.1,181.07,2.7633]
[1730181860272,3.98,181.1,181.05,5.9597619]
[1730181860465,9.9397619,181.1,181.05,5.9597619]
[1730181860872,9.9397619,181.1,181.06,2.7635]
[1730181864276,9.9397619,181.1,180.97,1.2705]
[1730181864277,3.98,181.1,181.05,5.9597619]
[1730181864476,3.98,181.1,181.08,2.7632]
[1730181865584,3.98,181.09,181.08,2.7632]
[1730181873186,3.98,181.09,181.08,8.7229619]
[1730181874295,2.7625,181.13,181.08,8.7229619]
[1730181874496,3.98,181.12,181.08,5.9597619]
[1730181874699,3.98,181.13,181.1,5.9597619]
[1730181875197,3.98,181.14,181.1,8.7226619]
[1730181876495,3.98,181.14,181.11,2.7627]
[1730181878396,3.98,181.14,181.1,5.9597619]
[1730181878596,3.98,181.14,181.13,5.9597619]
[1730181878804,5.9597619,181.17,181.11,5.9597619]
[1730181879299,3.98,181.16,181.11,5.9597619]
[1730181879795,3.98,181.16,181.11,8.7224619]
[1730181879796,2.7622,181.15,181.11,8.7224619]
[1730181880100,3.98,181.16,181.11,5.9597619]
[1730181880797,6.7421,181.16,181.12,2.7626]
[1730181882393,6.7421,181.16,181.12,8.7223619]
[1730181882795,3.98,181.16,181.12,5.9597619]
[1730181883600,2.7622,181.15,181.12,5.9597619]
[1730181883898,2.7622,181.15,181.12,8.7223619]
[1730181884297,3.98,181.16,181.12,5.9597619]
[1730181884603,3.98,181.15,181.12,5.9597619]
[1730181885194,3.98,181.15,181.13,2.7623]
[1730181885601,12.7019619,181.15,181.04,342.4606]
[1730181885803,12.7019619,181.15,181.09,5.9597619]
[1730181886597,6.7422,181.15,181.11,5.9597619]
[1730181887405,6.7422,181.15,181.11,8.7224619]
[1730181888105,3.98,181.15,181.11,5.9597619]
[1730181888307,6.7422,181.15,181.12,2.7626]
[1730181890813,3.98,181.15,181.11,5.9597619]
[1730181892115,3.98,181.15,181.12,2.7625]
[1730181895404,6.7422,181.15,181.12,2.7625]
[1730181897009,6.7422,181.15,181.14,2.7623]
[1730181897010,3.98,181.15,181.14,2.7623]
[1730181897609,3.98,181.16,181.14,2.7623]
[1730181901619,3.98,181.16,181.15,2.7622]
[1730181902006,3.98,181.21,181.15,5.9597619]
[1730181902214,3.98,181.2,181.16,5.9597619]
[1730181902619,2.7617,181.18,181.08,3.98]
[1730181902815,5.9597619,181.17,181.04,341.30918818]
[1730181903121,2.7622,181.15,181.11,2.7626]
[1730181903308,3.98,181.16,181.11,5.9597619]
[1730181903714,9.9397619,181.16,181.04,2.4806]
[1730181904018,9.9397619,181.16,181.11,5.9597619]
[1730181904019,11.2447619,181.16,181.11,5.9597619]
[1730181905220,2.7622,181.15,181.11,5.9597619]
[1730181907526,2.7622,181.15,181.11,8.7224619]
[1730181908322,2.7622,181.15,181.11,2.7627]
[1730181910020,2.7624,181.14,181.1,8.7225619]
[1730181911025,2.7624,181.14,181.11,2.7628]
[1730181911222,2.7622,181.15,181.11,2.7628]
[1730181912927,5.9597619,181.13,181.09,2.7631]
[1730181913128,3.98,181.12,181.09,2.7631]
[1730181914229,6.7426,181.12,181.09,2.7631]
[1730181914423,6.7426,181.12,181.08,5.9597619]
[1730181914626,6.7426,181.12,181.08,8.7229619]
[1730181917031,3.98,181.12,181.09,8.7227619]
[1730181918625,6.7426,181.12,181.09,2.763]
[1730181919729,3.98,181.12,181.11,2.7628]
[1730181919931,3.98,181.12,181.1,5.9597619]
[1730181920230,3.98,181.12,181.1,8.7225619]
[1730181920430,3.98,181.12,181.09,5.9597619]
[1730181920828,3.98,181.12,181.11,2.7628]
[1730181921626,1.305,181.16,181.12,2.7625]
[1730181921829,2.55427033,181.2,181.15,5.9597619]
[1730181922036,3.98,181.19,181.15,5.9597619]
[1730181922937,3.98,181.19,181.15,8.7218619]
[1730181923824,63.50277033,181.23,181.17,5.9597619]
[1730181924026,3.98,181.22,181.17,5.9597619]
[1730181924437,6.7411,181.22,181.18,2.7616]
[1730181924637,3.98,181.22,181.17,5.9597619]
[1730181924935,10.21708134,181.24,181.21,5.9597619]
[1730181925129,2.55427033,181.24,181.21,8.7208619]
[1730181926033,5.9597619,181.23,181.12,1.2962]
[1730181926237,2.55427033,181.24,181.19,5.9597619]
[1730181926436,2.55427033,181.24,181.18,5.9597619]
[1730181926833,2.7611,181.23,181.18,5.9597619]
[1730181927139,2.7611,181.23,181.2,5.9597619]
[1730181927932,2.7606,181.26,181.21,8.7208619]
[1730181928837,3.98,181.25,181.21,8.7208619]
[1730181929230,6.7406,181.25,181.21,8.7208619]
[1730181929431,3.98,181.25,181.21,8.7208619]
[1730181929638,3.98,181.25,181.22,2.7611]
[1730181929835,3.98,181.25,181.23,5.9597619]
[1730181930235,3.98,181.25,181.24,5.9597619]
[1730181932637,6.7408,181.25,181.15,3.98]
[1730181932843,3.98,181.25,181.21,5.9597619]
[1730181933448,2.761,181.23,181.21,5.9597619]
[1730181934839,2.7611,181.22,181.21,5.9597619]
[1730181935143,3.98,181.25,181.19,5.9597619]
[1730181935842,3.98,181.25,181.2,5.9597619]
[1730181936539,2.761,181.23,181.2,5.9597619]
[1730181936941,2.761,181.23,181.22,5.9597619]
[1730181941449,2.761,181.23,181.21,5.9597619]
[1730181942057,3.98,181.25,181.21,5.9597619]
[1730181942552,2.7611,181.23,181.21,5.9597619]
[1730181948851,6.7408,181.25,181.22,5.9597619]
[1730181949447,3.98,181.25,181.22,5.9597619]
[1730181949645,2.7608,181.24,181.22,5.9597619]
[1730181950559,6.7408,181.25,181.22,5.9597619]
[1730181951851,3.7809,181.31,181.24,5.9597619]
[1730181952053,3.98,181.3,181.24,8.7204619]
[1730181952454,2.7603,181.27,181.24,8.7204619]
[1730181953255,9.9397619,181.29,181.14,339.98]
[1730181953446,9.9397619,181.29,181.22,8.7207619]
[1730181954549,2.7606,181.26,181.22,8.7207619]
[1730181954859,3.98,181.25,181.22,8.7207619]
[1730181955063,3.98,181.25,181.24,5.9597619]
[1730181957363,3.98,181.25,181.22,5.9597619]
[1730181957567,3.98,181.25,181.2,5.9597619]
[1730181957764,2.7609,181.24,181.2,5.9597619]
[1730181957957,2.7609,181.24,181.2,8.7210619]
[1730181958156,2.7609,181.24,181.2,5.9597619]
[1730181958565,2.7609,181.24,181.2,8.7211619]
[1730181961066,2.761,181.23,181.2,8.7211619]
[1730181962568,2.7608,181.24,181.22,5.9597619]
[1730181963258,3.98,181.25,181.22,8.7207619]
[1730181964064,3.7809,181.31,181.24,5.9597619]
[1730181964367,2.7601,181.29,181.25,8.7202619]
[1730181965066,3.98,181.28,181.26,2.7605]
[1730181966666,2.76,181.3,181.27,5.9597619]
[1730181966861,3.98,181.29,181.27,8.7200619]
[1730181967371,6.74,181.3,181.27,5.9597619]
[1730181967768,3.98,181.3,181.27,5.9597619]
[1730181968371,6.7399,181.3,181.27,5.9597619]
[1730181969466,6.7399,181.3,181.27,8.7200619]
[1730181969667,2.4319,181.35,181.27,5.9597619]
[1730181969866,2.4319,181.35,181.31,5.9597619]
[1730181969867,2.7595,181.33,181.31,5.9597619]
[1730181971570,2.7593,181.34,181.31,5.9597619]
[1730181972075,6.4119,181.35,181.33,5.9597619]
[1730181972076,3.98,181.35,181.33,5.9597619]
[1730181973170,6.7392,181.35,181.33,5.9597619]
[1730181973866,2.7594,181.34,181.23,116.27184116]
[1730181974076,3.98,181.35,181.23,116.27184116]
[1730181974077,9.9397619,181.35,181.23,116.27184116]
[1730181974275,9.9397619,181.35,181.29,5.9597619]
[1730181974479,5.9597619,181.34,181.29,5.9597619]
[1730181974775,5.9597619,181.34,181.27,5.9597619]
[1730181974965,2.7601,181.29,181.27,5.9597619]
[1730181975359,2.7601,181.29,181.25,2.7605]
[1730181975360,3.98,181.3,181.2,3.98]
[1730181975561,3.98,181.3,181.25,5.9597619]
[1730181975862,2.7603,181.28,181.25,5.9597619]
[1730181979266,2.7603,181.28,181.27,5.9597619]
[1730181980068,2.7603,181.28,181.26,5.9597619]
[1730181983779,2.7603,181.28,181.24,8.7204619]
[1730181984670,5.9597619,181.26,181.21,8.7209619]
[1730181984869,9.9397619,181.26,181.21,5.9597619]
[1730181985173,2.7609,181.24,181.21,5.9597619]
[1730181986365,12.7003619,181.26,181.21,5.9597619]
[1730181986573,9.9397619,181.26,181.21,5.9597619]
[1730181987676,2.7608,181.25,181.21,8.7208619]
[1730181987980,3.98,181.26,181.22,5.9597619]
[1730181988177,2.7604,181.27,181.23,2.7608]
[1730181988383,3.98,181.26,181.23,2.7608]
[1730181988678,6.7404,181.27,181.23,2.7608]
[1730181988872,6.7404,181.27,181.22,5.9597619]
[1730181988873,2.7605,181.26,181.22,2.7611]
[1730181989474,2.7606,181.25,181.22,2.7611]
[1730181989677,2.7606,181.25,181.21,8.7209619]
[1730181990573,5.9597619,181.26,181.21,5.9597619]
[1730181990773,2.7609,181.24,181.21,5.9597619]
[1730181992287,2.7609,181.24,181.21,8.7209619]
[1730181995579,2.761,181.23,181.18,2.7617]
[1730181995786,5.9597619,181.25,181.19,5.9597619]
[1730181996275,2.7609,181.24,181.2,2.7613]
[1730181997284,3.98,181.23,181.2,2.7613]
[1730181998193,5.9597619,181.22,181.13,2.4218]
[1730181998385,5.9597619,181.21,181.14,5.9597619]
[1730181998879,2.7617,181.19,181.15,2.762]
[1730181999075,9.9397619,181.19,181.09,3.98]
[1730181999378,3.98,181.19,181.14,5.9597619]
[1730181999683,2.7617,181.18,181.14,8.7220619]
[1730181999985,9.9397619,181.19,181.08,2.5597]
[1730182000191,2.7619,181.17,181.13,8.7221619]
[1730182000387,3.98,181.19,181.13,5.9597619]
[1730182000693,2.7617,181.18,181.14,8.7219619]
[1730182001186,2.7617,181.18,181.14,5.9597619]
[1730182001391,2.7617,181.18,181.08,6.5397]
[1730182001392,3.98,181.22,181.17,5.9597619]
[1730182001592,7.66281101,181.35,181.08,6.5397]
[1730182001593,1.2323,181.31,181.2,5.9597619]
[1730182001787,5.9597619,181.28,181.22,8.7207619]
[1730182001988,2.7605,181.27,181.22,8.7207619]
[1730182002288,3.7095,181.31,181.28,2.7602]
[1730182002486,5.9597619,181.3,181.24,5.9597619]
[1730182002689,3.98,181.29,181.24,5.9597619]
[1730182002878,2.7602,181.28,181.25,2.7606]
[1730182003596,2.7602,181.28,181.24,8.7204619]
[1730182004188,4.0,181.28,181.25,2.7606]
[1730182004389,4.0,181.28,181.24,5.9597619]
[1730182005389,4.0,181.28,181.24,8.7205619]
[1730182005687,6.7602,181.28,181.24,8.7205619]
[1730182006195,6.7602,181.28,181.24,5.9597619]
[1730182009092,2.7604,181.27,181.24,5.9597619]
[1730182009998,2.7607,181.25,181.22,5.9597619]
[1730182010396,9.9597619,181.28,181.22,5.9597619]
[1730182010592,2.7606,181.26,181.23,5.9597619]
[1730182010784,4.0,181.28,181.23,5.9597619]
[1730182011284,2.7604,181.27,181.23,5.9597619]
[1730182011488,4.0,181.28,181.23,5.9597619]
[1730182012100,2.7606,181.26,181.25,5.9597619]
[1730182014487,3.7095,181.31,181.25,5.9597619]
[1730182014789,4.0,181.3,181.27,5.9597619]
[1730182015402,6.7599,181.3,181.27,5.9597619]
[1730182015595,4.0,181.3,181.27,5.9597619]
[1730182017402,2.7601,181.29,181.27,5.9597619]
[1730182018691,4.0,181.3,181.27,5.9597619]
[1730182018899,2.7605,181.26,181.23,2.7609]
[1730182019100,2.7605,181.26,181.24,5.9597619]
[1730182020194,4.0,181.3,181.22,5.9597619]
[1730182020195,2.7606,181.25,181.22,5.9597619]
[1730182020396,4.0,181.26,181.21,5.9597619]
[1730182020802,2.7609,181.24,181.21,8.7209619]
[1730182021000,4.0,181.26,181.21,8.7209619]
[1730182021303,4.0,181.26,181.22,5.9597619]
[1730182021499,2.7608,181.25,181.22,5.9597619]
[1730182022290,4.0,181.26,181.24,5.9597619]
[1730182022894,4.0,181.26,181.24,8.7205619]
[1730182024902,1.2162,181.31,181.25,5.9597619]
[1730182025204,4.0,181.28,181.27,5.9597619]
[1730182026106,2.7598,181.31,181.27,8.7199619]
[1730182026303,6.7598,181.31,181.27,5.9597619]
[1730182026694,6.7598,181.31,181.27,8.7200619]
[1730182026896,4.0,181.31,181.27,8.7200619]
[1730182027105,2.7599,181.3,181.27,8.7200619]
[1730182027506,2.7599,181.3,181.27,5.9597619]
[1730182028216,2.7599,181.3,181.26,2.7605]
[1730182028407,2.7599,181.3,181.27,5.9597619]
[1730182028611,2.7604,181.27,181.24,2.7606]
[1730182028808,2.7604,181.27,181.23,5.9597619]
[1730182029315,2.7602,181.28,181.25,5.9597619]
[1730182030315,2.7602,181.28,181.25,8.7203619]
[1730182031513,9.9597619,181.31,181.25,5.9597619]
[1730182032213,2.7603,181.28,181.25,5.9597619]
[1730182032801,9.9597619,181.31,181.25,5.9597619]
[1730182033008,2.7603,181.27,181.24,2.7608]
[1730182033205,6.7603,181.27,181.24,2.7608]
[1730182033613,2.7611,181.22,181.19,2.7615]
[1730182033814,4.0,181.23,181.19,2.7615]
[1730182034317,4.0,181.23,181.2,5.9597619]
[1730182034508,4.0,181.23,181.2,8.7211619]
[1730182035209,2.7613,181.21,181.18,2.7617]
[1730182035404,2.7613,181.21,181.17,5.9597619]
[1730182036014,2.7611,181.22,181.18,2.7617]
[1730182036218,4.0,181.23,181.12,6.5224]
[1730182036409,4.0,181.23,181.17,5.9597619]
[1730182036605,2.7613,181.21,181.19,5.9597619]
[1730182036806,9.9597619,181.23,181.12,2.5224]
[1730182037108,9.9597619,181.23,181.16,5.9597619]
[1730182037305,2.7614,181.21,181.17,2.7619]
[1730182039516,2.7614,181.21,181.12,2.5224]
[1730182039517,6.761,181.23,181.19,8.7212619]
[1730182040718,4.0,181.23,181.2,2.7614]
[1730182042315,6.761,181.23,181.2,2.7614]
[1730182043417,6.761,181.23,181.19,5.9597619]
[1730182043621,6.761,181.23,181.19,8.7212619]
[1730182043822,2.7611,181.22,181.19,5.9597619]
[1730182044623,2.7611,181.22,181.18,5.9597619]
[1730182044822,2.7614,181.2,181.16,5.9597619]
[1730182045325,2.7613,181.21,181.18,2.7617]
[1730182045514,4.0,181.23,181.18,5.9597619]
[1730182045824,6.7611,181.23,181.19,2.7614]
[1730182046220,4.0,181.23,181.19,2.7614]
[1730182047227,2.7611,181.22,181.19,2.7614]
[1730182047622,4.0,181.23,181.19,2.7614]
[1730182048630,1.2692,181.28,181.19,2.7614]
[1730182048831,5.9597619,181.25,181.19,5.9597619]
[1730182049032,4.0,181.29,181.25,2.7605]
[1730182050025,8.7200619,181.28,181.23,2.7608]
[1730182050426,8.7200619,181.28,181.22,5.9597619]
[1730182050933,8.7200619,181.28,181.24,2.7607]
[1730182053536,2.7604,181.27,181.24,2.7607]
[1730182053841,5.9597619,181.28,181.24,2.7607]
[1730182054041,8.7199619,181.28,181.24,2.7607]
[1730182054641,8.7199619,181.28,181.25,2.7606]
[1730182057537,4.0,181.29,181.23,2.7608]
[1730182057538,2.7605,181.26,181.23,2.7608]
[1730182057837,5.9597619,181.26,181.22,5.9597619]
[1730182058041,4.0,181.25,181.22,5.9597619]
[1730182058855,6.7607,181.25,181.22,8.7207619]
[1730182059343,4.0,181.25,181.23,5.9597619]
[1730182060640,4.0,181.25,181.15,336.0]
[1730182060845,4.0,181.25,181.21,5.9597619]
[1730182061046,4.0,181.25,181.23,5.9597619]
[1730182062350,5.9597619,181.29,181.23,5.9597619]
[1730182062552,5.9597619,181.29,181.16,4.0]
[1730182062553,6.7602,181.28,181.25,2.7606]
[1730182062854,4.0,181.27,181.25,2.7606]
[1730182064356,2.7602,181.29,181.27,2.7603]
[1730182064357,4.02,181.29,181.27,2.7603]
[1730182064555,5.9597619,181.31,181.27,2.7603]
[1730182064763,4.02,181.3,181.27,2.7603]
[1730182066256,6.7799,181.3,181.27,2.7603]
[1730182068751,4.02,181.29,181.27,2.7603]
[1730182069657,4.02,181.29,181.24,5.9597619]
[1730182069855,12.7398619,181.29,181.24,5.9597619]
[1730182070061,9.9797619,181.29,181.23,5.9597619]
[1730182070462,12.7397619,181.29,181.26,2.7605]
[1730182073560,12.7397619,181.29,181.24,5.9597619]
[1730182073761,12.7397619,181.29,181.26,2.7604]
[1730182073957,6.78,181.29,181.26,2.7604]
[1730182076960,12.7397619,181.29,181.26,2.7604]
[1730182078564,2.7602,181.28,181.25,2.7605]
[1730182078864,9.9797619,181.29,181.19,1.2786]
[1730182079171,9.9797619,181.29,181.16,1.1852]
[1730182079172,5.9597619,181.25,181.2,5.9597619]
[1730182079476,9.9797619,181.25,181.2,5.9597619]
[1730182079660,4.02,181.25,181.2,5.9597619]
[1730182079968,4.02,181.25,181.22,5.9597619]
[1730182080164,4.02,181.25,181.23,2.7608]
[1730182082870,5.9597619,181.24,181.15,336.0]
[1730182083074,5.9597619,181.2,181.14,5.9597619]
[1730182083262,4.02,181.19,181.14,5.9597619]
[1730182083465,6.7816,181.19,181.15,2.7621]
[1730182083872,4.02,181.19,181.14,5.9597619]
[1730182084063,4.02,181.19,181.17,2.7618]
[1730182084571,1.2686,181.23,181.15,5.9597619]
[1730182084874,4.02,181.22,181.18,2.7616]
[1730182085170,4.02,181.22,181.06,342.4997]
[1730182085171,2.7605,181.26,181.22,2.761]
[1730182085357,4.02,181.25,181.19,5.9597619]
[1730182085760,2.7608,181.24,181.2,2.7614]
[1730182086164,1.1788,181.31,181.19,5.9597619]
[1730182086365,8.7203619,181.26,181.21,8.7209619]
[1730182086557,4.02,181.25,181.21,8.7209619]
[1730182086763,6.7808,181.25,181.21,8.7209619]
[1730182089369,6.7808,181.25,181.21,2.7612]
[1730182089568,2.761,181.23,181.19,2.7616]
[1730182089867,5.9597619,181.24,181.18,5.9597619]
[1730182090266,2.7612,181.22,181.18,8.7214619]
[1730182090460,4.02,181.21,181.16,5.9597619]
[1730182090665,9.9797619,181.21,181.15,5.9597619]
[1730182091870,2.7614,181.2,181.16,2.7619]
[1730182094475,9.9797619,181.21,181.15,5.9597619]
[1730182094676,2.7616,181.19,181.16,2.762]
[1730182094979,9.9797619,181.21,181.16,2.762]
[1730182095478,2.7615,181.2,181.16,2.762]
[1730182097374,5.9597619,181.19,181.12,2.4278]
[1730182097580,5.9597619,181.19,181.14,2.7623]
[1730182097770,5.9597619,181.17,181.14,2.7623]
[1730182097970,4.0,181.16,181.14,2.7623]
[1730182101986,4.0,181.16,181.14,8.7220619]
[1730182102578,4.0,181.16,181.15,2.7622]
[1730182107479,4.0,181.16,181.07,2.5288]
[1730182107985,4.0,181.16,181.12,5.9597619]
[1730182108178,4.0,181.16,181.13,5.9597619]
[1730182109285,4.0,181.16,181.15,2.7622]
[1730182125483,2.7615,181.2,181.16,2.7619]
[1730182125684,5.9597619,181.18,181.16,2.7619]
[1730182129182,2.7615,181.2,181.16,2.7619]
[1730182129390,5.9597619,181.18,181.16,2.7619]
[1730182129593,3.98,181.17,181.16,2.7619]
[1730182130290,9.9397619,181.17,181.11,5.9597619]
[1730182131486,9.9397619,181.17,181.14,2.7622]
[1730182131894,9.9397619,181.17,181.07,2.5288]
[1730182132197,5.9597619,181.16,181.07,2.5288]
[1730182132495,5.9597619,181.16,181.1,5.9597619]
[1730182132797,5.9597619,181.16,181.13,2.7624]
[1730182138304,5.9597619,181.16,181.14,2.7623]
[1730182141206,9.9397619,181.17,181.15,2.7622]
[1730182141503,5.9597619,181.18,181.13,5.9597619]
[1730182141705,3.98,181.17,181.16,2.762]
[1730182148001,3.98,181.17,181.16,8.7217619]
[1730182148204,1.287,181.23,181.16,5.9597619]
[1730182148402,3.98,181.22,181.18,5.9597619]
[1730182148999,3.98,181.22,181.19,2.7615]
[1730182149205,3.98,181.22,181.18,5.9597619]
[1730182149402,3.98,181.22,181.2,2.7613]
[1730182149602,3.98,181.22,181.19,5.9597619]
[1730182150002,3.98,181.22,181.2,2.7613]
[1730182151007,3.98,181.21,181.2,2.7613]
[1730182151506,3.98,181.21,181.13,1.2332]
[1730182151712,9.9397619,181.21,181.15,5.9597619]
[1730182152306,3.98,181.21,181.15,5.9597619]
[1730182152606,3.98,181.21,181.18,2.7617]
[1730182153002,3.98,181.21,181.19,2.7615]
[1730182153199,2.761,181.23,181.19,2.7615]
[1730182153407,3.98,181.22,181.2,5.9597619]
[1730182155407,3.98,181.22,181.21,2.7612]
[1730182156708,3.98,181.22,181.2,5.9597619]
[1730182157412,3.98,181.22,181.18,5.9597619]
[1730182158515,12.7009619,181.22,181.14,1.2105]
[1730182158824,12.7009619,181.22,181.16,5.9597619]
[1730182160413,12.7009619,181.22,181.18,2.7616]
[1730182162222,3.98,181.21,181.2,5.9597619]
[1730182162522,3.98,181.22,181.2,5.9597619]
[1730182163123,3.98,181.22,181.2,8.7210619]
[1730182166027,3.98,181.22,181.2,2.7613]
[1730182166222,3.98,181.21,181.2,2.7613]
[1730182170423,3.98,181.21,181.18,8.7213619]
[1730182171613,3.98,181.21,181.2,2.7614]
[1730182174028,3.98,181.21,181.19,5.9597619]
[1730182174223,3.98,181.21,181.17,5.9597619]
[1730182175219,3.98,181.21,181.18,2.7616]
[1730182176718,9.9397619,181.21,181.15,5.9597619]
[1730182176923,2.7615,181.2,181.16,2.7619]
[1730182177626,2.7615,181.2,181.16,8.7216619]
[1730182180527,3.98,181.21,181.16,5.9597619]
[1730182181424,6.7413,181.21,181.17,2.7618]
[1730182188248,3.98,181.21,181.19,2.7614]
[1730182188433,3.98,181.21,181.18,5.9597619]
[1730182188633,2.4832,181.25,181.2,5.9597619]
[1730182188938,3.98,181.24,181.23,5.9597619]
[1730182189753,3.98,181.24,181.22,5.9597619]
[1730182189947,3.98,181.24,181.23,2.7609]
[1730182190353,3.98,181.24,181.22,2.7611]
[1730182194247,3.98,181.24,181.22,8.7208619]
[1730182194452,3.98,181.24,181.22,2.7611]
[1730182196357,3.98,181.24,181.21,8.7209619]
[1730182196556,2.761,181.23,181.15,2.4351]
[1730182196762,2.761,181.23,181.19,5.9597619]
[1730182197060,5.9597619,181.22,181.15,1.2306]
[1730182197257,5.9597619,181.22,181.17,5.9597619]
[1730182197454,8.7209619,181.22,181.17,5.9597619]
[1730182197755,9.9397619,181.24,181.19,8.7212619]
[1730182197961,2.761,181.23,181.19,8.7212619]
[1730182202170,2.7603,181.27,181.2,5.9597619]
[1730182202465,3.98,181.26,181.2,5.9597619]
[1730182202968,3.98,181.26,181.22,5.9597619]
[1730182203169,3.98,181.25,181.15,1.2306]
[1730182203369,3.98,181.25,181.22,5.9597619]
[1730182203663,3.98,181.24,181.22,5.9597619]
[1730182204666,3.98,181.24,181.23,2.7609]
[1730182205258,12.7005619,181.24,181.2,2.7613]
[1730182205766,12.7005619,181.24,181.18,5.9597619]
[1730182206568,12.7005619,181.24,181.16,1.1956]
[1730182206569,2.7611,181.23,181.15,1.2306]
[1730182206763,2.7611,181.23,181.18,5.9597619]
[1730182207670,2.7611,181.23,181.19,2.7615]
[1730182207855,5.9597619,181.23,181.18,5.9597619]
[1730182208058,2.7613,181.21,181.16,5.9597619]
[1730182208365,3.98,181.2,181.17,2.7617]
[1730182208566,3.98,181.2,181.16,5.9597619]
[1730182208755,3.98,181.2,181.12,3.98]
[1730182208960,3.98,181.2,181.17,2.7617]
[1730182209157,3.98,181.2,181.16,5.9597619]
[1730182210056,3.98,181.2,181.17,2.7618]
[1730182210572,3.98,181.2,181.18,2.7617]
[1730182211071,3.98,181.2,181.16,5.9597619]
[1730182211257,3.98,181.2,181.17,2.7618]
[1730182211857,3.98,181.2,181.16,5.9597619]
[1730182211858,6.7415,181.2,181.16,8.7217619]
[1730182212371,2.7617,181.19,181.13,2.7624]
[1730182212562,5.9597619,181.18,181.04,338.80382829]
[1730182212764,5.9597619,181.17,181.11,5.9597619]
[1730182213066,3.98,181.16,181.11,5.9597619]
[1730182213565,3.98,181.16,181.13,2.7624]
[1730182214972,6.7421,181.16,181.12,8.7222619]
[1730182215573,3.98,181.16,181.12,8.7222619]
[1730182216075,3.98,181.16,181.13,2.7624]
[1730182216761,5.9597619,181.15,181.11,5.9597619]
[1730182217075,5.9597619,181.15,181.09,5.9597619]
[1730182218363,8.7220619,181.15,181.11,2.7627]
[1730182221885,2.7623,181.15,181.11,2.7627]
[1730182222180,6.7421,181.16,181.12,2.7626]
[1730182222674,12.7018619,181.16,181.12,2.7626]
[1730182223180,3.7489,181.2,181.12,5.9597619]
[1730182223378,6.7417,181.19,181.14,2.7623]
[1730182223679,5.9597619,181.18,181.14,2.7623]
[1730182224281,5.9597619,181.18,181.12,5.9597619]
[1730182224479,3.98,181.17,181.14,2.7622]
[1730182227173,8.7214619,181.18,181.14,2.7622]
[1730182227373,3.98,181.17,181.14,2.7622]
[1730182228479,3.7489,181.2,181.12,5.9597619]
[1730182228679,8.4143619,181.2,181.14,5.9597619]
[1730182228985,3.98,181.19,181.16,5.9597619]
[1730182229278,3.98,181.19,181.18,2.7617]
[1730182229975,3.98,181.19,181.17,2.7618]
[1730182233478,3.98,181.19,181.15,2.762]
[1730182233872,3.98,181.19,181.13,5.9597619]
[1730182234284,3.98,181.19,181.14,2.7622]
[1730182234486,3.98,181.19,181.13,5.9597619]
[1730182234885,3.98,181.19,181.15,2.7621]
[1730182235576,6.7416,181.19,181.15,2.7621]
[1730182236784,12.7013619,181.19,181.15,2.7621]
[1730182237282,3.98,181.19,181.14,5.9597619]
[1730182237477,3.98,181.19,181.17,2.7617]
[1730182238987,3.98,181.19,181.16,2.762]
[1730182239283,3.98,181.19,181.14,5.9597619]
[1730182239684,3.98,181.19,181.16,2.7619]
[1730182239985,3.98,181.19,181.14,5.9597619]
[1730182241590,3.98,181.19,181.16,2.7619]
[1730182242187,3.98,181.19,181.14,5.9597619]
[1730182242383,3.98,181.19,181.17,2.7618]
[1730182244980,3.98,181.19,181.15,2.7621]
[1730182245178,3.98,181.19,181.14,5.9597619]